Cogmind - Beta 16.1 @@@ ROGUE MODE // 2026.02.19 @ 19:20:54 Player: ev3v Result: Destroyed by Y-45 Defender with Beam Rifle Performance ------------- Evolutions (1) 500 Regions Visited (3) 600 Robots Destroyed (47) 235 Value Destroyed (1387) 1387 Prototype IDs (0) 0 Alien Tech Used (0) 0 Bonus (0) 0 TOTAL SCORE: 2722 Bonus ------- None Cogmind --------- Core Integrity 0/400 Matter 149/300 Energy 265/265 System Corruption 0% Temperature Cool (9) Movement Rolling (100) Ox1 Location -9/Storage Parts ------- > --- POWER (1) -------- Improved Ion Engine > --- PROPULSION (3) --- Wheel Armored Wheel > --- UTILITY (3) ------ Large Storage Unit > --- WEAPON (2) ------- Improved Light Cannon > --- INVENTORY (15) --- Light Ion Engine Heat Sink Heat Sink Medium Storage Unit Seismic Detector Backup Plating I Beam Rifle Field Laser Beam Cannon Assault Rifle Light Cannon Grenade Launcher Datajack Peak State ------------ > --- POWER ------------ Light Nuclear Core > --- PROPULSION ------- Aluminum Leg Aluminum Leg Aluminum Leg > --- UTILITY ---------- Large Storage Unit > --- WEAPON ----------- Field Laser Field Laser > --- INVENTORY -------- Light Ion Engine Improved Ion Engine Heat Sink Heat Sink Medium Storage Unit Seismic Detector Beam Rifle Beam Cannon Assault Rifle High-powered Shotgun High-powered Shotgun Light Cannon Improved Light Cannon Grenade Launcher [Rating: 15] Favorites ----------- Power Light Nuclear Core Engine Improved Ion Engine Power Core Light Nuclear Core Propulsion Aluminum Leg Leg Aluminum Leg Wheel Wheel Hover Unit Backup Propulsion I Utility Large Storage Unit Device Heat Sink Storage Large Storage Unit Protection Backup Plating I Weapon Light Cannon Energy Gun Field Laser Energy Cannon Beam Cannon Ballistic Gun Assault Rifle Ballistic Cannon Light Cannon Launcher Grenade Launcher Build | -11 -10 -9 -9 ------- Run | Yrd Mat Mat Sto Slots Evolved 2 | . . 2 . Power . | . . . . Propulsion 1 | . . 1 . Utility 1 | . . 1 . Weapon . | . . . . Parts Attached 31 | 5 10 6 10 Power 4 | 1 1 . 2 Engine 3 | 1 . . 2 Core 1 | . 1 . . Reactor . | . . . . Propulsion 12 | 2 2 3 5 Treads . | . . . . Leg 10 | 2 2 3 3 Wheel 2 | . . . 2 Hover . | . . . . Flight . | . . . . Utility 5 | . 4 . 1 Device 3 | . 3 . . Storage 1 | . 1 . . Processor . | . . . . Hackware . | . . . . Protection 1 | . . . 1 Artifact . | . . . . Weapon 10 | 2 3 3 2 Energy Gun 3 | 1 . 2 . Energy Cannon 1 | . 1 . . Ballistic Gun 3 | 1 . 1 1 Ballistic Cannon 2 | . 1 . 1 Launcher 1 | . 1 . . Special Weapon . | . . . . Impact Weapon . | . . . . Slashing Weapon . | . . . . Piercing Weapon . | . . . . Special Melee Weapon . | . . . . Unidentified Prototypes . | . . . . Parts Lost 11 | . . 1 10 Power 1 | . . . 1 Propulsion 7 | . . 1 6 Utility . | . . . . Weapon 3 | . . . 3 Highest Loss Streak 3 | . . 1 3 To Critical Strikes . | . . . . Average Backups 10 | . 5 13 13 Power 1 | . . 1 1 Propulsion . | . 1 1 . Utility 2 | . . 3 4 Weapon 5 | . 2 7 6 Tool/Special . | . . . . Unused Backups 9 | . 1 2 6 Power . | . . . . Propulsion . | . . . . Utility 4 | . . . 4 Weapon 4 | . 1 2 1 Tool/Special 1 | . . . 1 Average Slot Usage (%) 77 | . 98 73 62 Engine 3 | . 2 . 7 Core 7 | . 11 11 1 Leg 24 | . 28 29 14 Wheel 1 | . . . 5 Hover 1 | . . . 5 Device 6 | . 22 . . Storage 8 | . 3 11 11 Energy Gun 3 | . 3 5 2 Energy Cannon 4 | . 7 6 . Ballistic Gun 6 | . 6 6 6 Ballistic Cannon 7 | . 10 4 7 Peak Build Rating 15 | 5 9 15 15 Average Rating 9 | 4 8 11 9 On Entrance 6 | . 5 9 13 Avg Prop Armor Cover (%) 8 | . . . 8 Naked Turns . | . . . . Heaviest Build 34 | 7 32 32 34 Greatest Support 30 | 20 20 30 30 Greatest Overweight (x) 3 | . 1 1 3 Average Overweight (x) . | . . . 1 Largest Inventory Capacity 15 | 5 15 15 15 Average Capacity 12 | 5 7 15 15 Most Carried 15 | 5 9 15 15 Average Carried 10 | . 5 13 13 Final Capacity 15 | 5 15 15 15 Final Carried 14 | 5 9 14 13 Class Distribution -------------------- 100% | Mutant Dominant Class ---------------- Mutant | -10/Materials Mutant | -9/Materials Mutant | -9/Storage Resources | -11 -10 -9 -9 ----------- Run | Yrd Mat Mat Sto Matter Collected 1077 | 256 284 213 324 Remotely . | . . . . Salvage Created 1287 | 31 385 320 551 Parts 79 | 4 29 12 34 Haulers Intercepted . | . . . . Recyclers Shooed 2 | . . 1 1 Parts Field Recycled . | . . . . Retrieved Matter . | . . . . Parts Self-Destructed . | . . . . Prevented . | . . . . Parts Restored . | . . . . Kills | -11 -10 -9 -9 ------- Run | Yrd Mat Mat Sto Combat Hostiles Destroyed 39 | 1 11 7 20 Guns 15 | 1 4 5 5 Cannons 15 | . 6 2 7 AOE 9 | . 1 . 8 Classes Destroyed 8 | 1 3 1 3 Worker 2 | . 1 . 1 Builder 1 | . . . 1 Recycler 1 | . . . 1 Mechanic 1 | . . . 1 Watcher 3 | . 2 . 1 Swarmer 7 | . 3 . 4 Grunt 23 | 1 8 3 11 Sentry 9 | . . 4 5 Best Kill Streak 14 | 1 8 2 14 Combat Bots Only 9 | 1 3 2 9 Max Kills in Single Turn 3 | 1 1 1 3 Gunslinging . | . . . . Exploded 2 | . 1 . 2 Melee . | . . . . Uniques/NPCs Destroyed . | . . . . Combat | -11 -10 -9 -9 -------- Run | Yrd Mat Mat Sto Hostile Shots Fired 228 | 5 56 45 122 Missed 69 | . 22 15 32 Hits 159 | 5 34 30 90 Projectile 159 | 5 34 30 90 Critical Strikes 5 | . . 1 4 Damage Taken 2104 | 54 362 407 1281 Core 531 | 33 87 57 354 Absorbed by Shields . | . . . . Core Remaining (%) 69 | 86 52 . . Volleys Fired 122 | 4 40 26 52 Largest 2 | 2 2 2 2 Hottest 123 | 70 90 123 88 Shots Fired 224 | 8 79 52 85 Gun 117 | 8 38 29 42 Cannon 94 | . 40 23 31 Launcher 13 | . 1 . 12 Special . | . . . . Kinetic 149 | 4 57 24 64 Thermal 62 | 4 21 28 9 Explosive 13 | . 1 . 12 Electromagnetic . | . . . . Robot Hit Streak 19 | 1 8 19 12 Robot Miss Streak 7 | 3 7 2 5 Penetration Max . | . . . . Secondary Targets 1 | . . . 1 Max Gunslinging Chain 1 | . . . 1 Shots Hit Robots 148 | 3 42 42 61 Core Hits 73 | 4 18 12 39 Critical Kills . | . . . . Critical Parts Destroyed 1 | . . . 1 Critical Strikes 5 | . 2 . 3 Burn 2 | . 2 . . Destroy 1 | . . . 1 Blast 2 | . . . 2 Melee Attacks . | . . . . Impact . | . . . . Slashing . | . . . . Piercing . | . . . . Sneak Attacks . | . . . . Combat Hostiles . | . . . . Follow-up Attacks . | . . . . Damage Inflicted 3115 | 42 476 679 1918 Guns 1256 | 38 238 335 645 Cannons 1020 | . 208 313 499 Explosions 798 | . 30 . 768 Melee . | . . . . Ramming 41 | 4 . 31 6 Kinetic 1643 | . 281 336 1026 Thermal 633 | 38 165 312 118 Explosive 798 | . 30 . 768 Electromagnetic . | . . . . Impact . | . . . . Slashing . | . . . . Piercing . | . . . . Highest Corruption . | . . . . Average Corruption . | . . . . Corruption Purged . | . . . . Corruption Blocked . | . . . . Overload Shots . | . . . . Overflow Damage 32 | . 11 . 21 Projectiles 11 | . 11 . . Explosions 21 | . . . 21 Melee . | . . . . Knockbacks 1 | . 1 . . Impact . | . . . . Kinetic 1 | . 1 . . Secondary . | . . . . Self-Inflicted Damage 28 | . . . 28 Shots 2 | . . . 2 Rammed 2 | . . . 2 Targets Rammed 9 | 2 . 4 3 Kicked 7 | 2 . 4 1 Crushed . | . . . . Highest Temperature 249 | 66 48 249 75 Average Temperature 45 | 38 15 79 19 Received Heat Transfer 849 | 30 165 144 510 Siege Activations . | . . . . Martial Activations . | . . . . Shielding Activations . | . . . . Robots Disrupted . | . . . . Combat Hostiles . | . . . . Robots Corrupted . | . . . . Combat Hostiles . | . . . . Parts Fried . | . . . . Impact Corruptions . | . . . . Robots Melted . | . . . . Combat Hostiles . | . . . . Parts Melted 2 | . . 1 1 Heat Transferred 1628 | 111 592 666 259 Parts Sabotaged . | . . . . Parts Stolen . | . . . . Parts Stripped . | . . . . Power Chain Reactions . | . . . . Alert | -11 -10 -9 -9 ------- Run | Yrd Mat Mat Sto Maximum Alert Level 1 | . . . 1 Low Security (%) 75 | 100 100 100 20 Level 1 24 | . . . 79 Level 2 . | . . . . Level 3 . | . . . . Level 4 . | . . . . Level 5 . | . . . . High Security . | . . . . Max Security . | . . . . Peak Influence 356 | 20 168 101 356 Initial 46 | . 6 46 21 Average 117 | 3 102 36 245 Influence Increases 1224 | 20 321 246 637 Destroy 0b10 Robot/C 780 | 20 220 140 400 Destroy 0b10 Robot/NC 40 | . 15 . 25 Destroy Leader 236 | . 54 60 122 Successful Hack 40 | . 7 15 18 Disable Machine 45 | . 15 . 30 Destroy Structure 38 | . 10 1 27 Lose Combat Pursuer 45 | . . 30 15 Influence Decreases 920 | 10 220 306 384 Entered New Map 99 | . 4 65 30 Time Decay 711 | 10 216 231 254 Lost Part 110 | . . 10 100 Squads Dispatched 10 | . 3 2 5 Investigation 3 | . . 2 1 Extermination . | . . . . Reinforcement 6 | . 3 . 3 Assault . | . . . . Garrison 1 | . . . 1 Intercept . | . . . . Searches Triggered . | . . . . Construction Impeded 1 | . . . 1 Haulers Reinforced . | . . . . Active Scanning Responses . | . . . . Cargo Convoy Interrupts . | . . . . Stealth | -11 -10 -9 -9 --------- Run | Yrd Mat Mat Sto Distress Signals 3 | . 1 . 2 Communications Jammed . | . . . . Distress Signals . | . . . . Times Spotted 51 | 1 16 9 25 Peak Tracking Total 9 | 1 5 3 9 Tactical Retreats 3 | . . 2 1 Traps | -11 -10 -9 -9 ------- Run | Yrd Mat Mat Sto Traps Triggered 1 | . . 1 . Indirectly . | . . . . Trap Hack Attempts . | . . . . Triggered . | . . . . Disarmed . | . . . . Reprogrammed . | . . . . Reused . | . . . . Traps Extracted . | . . . . Installed . | . . . . Triggered . | . . . . Machines | -11 -10 -9 -9 ---------- Run | Yrd Mat Mat Sto Machines Disabled 3 | . 1 . 2 Max in Single Turn 1 | . 1 . 1 Machines Repaired . | . . . . Machines Dismantled . | . . . . Machines Sabotaged . | . . . . Overloaded Fab Kills . | . . . . Hacking | -11 -10 -9 -9 --------- Run | Yrd Mat Mat Sto Machines Accessed 8 | . 1 4 3 Terminals 5 | . 1 3 1 Fabricators . | . . . . Repair Stations 1 | . . . 1 Recycling Units 1 | . . . 1 Scanalyzers 1 | . . 1 . Garrison Access . | . . . . Total Hacks 33 | . 3 15 15 Successful 21 | . 3 10 8 Failed 12 | . . 5 7 Catastrophic 1 | . . . 1 Database Lockouts . | . . . . Manual 3 | . . . 3 Terminals 20 | . 3 11 6 Fabricators . | . . . . Repair Stations 4 | . . . 4 Recycling Units 5 | . . . 5 Scanalyzers 4 | . . 4 . Garrison Access . | . . . . Terminal Hacks 14 | . 3 7 4 Record 7 | . 1 6 . Alert Level 1 | . 1 . . Security Status 2 | . . 1 1 Surveillance Status 1 | . . . 1 Reinforcement Status 1 | . . . 1 Hauler Manifests 1 | . . . 1 Zone Layout 1 | . 1 . . Fabricator Hacks . | . . . . Repair Station Hacks 2 | . . . 2 Refit 2 | . . . 2 Recycling Unit Hacks 2 | . . . 2 Report Inventory 1 | . . . 1 Retrieve Components 1 | . . . 1 Scanalyzer 3 | . . 3 . Retrieve Study 3 | . . 3 . Garrison Access Hacks . | . . . . Unauthorized Hacks . | . . . . Terminals . | . . . . Fabricators . | . . . . Repair Stations . | . . . . Recycling Units . | . . . . Scanalyzers . | . . . . Garrison Access . | . . . . Data Cores Recovered . | . . . . Used . | . . . . Hacking Detections 8 | . 1 4 3 Full Trace Events 4 | . 1 2 1 Feedback Events . | . . . . Feedback Blocked . | . . . . Robot Schematics Acquired . | . . . . Robots Built . | . . . . Authchips . | . . . . Time . | . . . . Total Robot Build Rating . | . . . . Part Schematics Acquired . | . . . . Parts Built . | . . . . Authchips . | . . . . Time . | . . . . Total Part Build Rating . | . . . . Part Studies Acquired 2 | . . 2 . Parts Repaired . | . . . . Time . | . . . . Parts Recycled . | . . . . Recycled Matter . | . . . . Retrieved Matter . | . . . . Retrieved Components 9 | . . . 9 Parts Scanalyzed . | . . . . Part Schematics Acquired . | . . . . Parts Damaged . | . . . . Bothacking | -11 -10 -9 -9 ------------ Run | Yrd Mat Mat Sto Used RIF Installer . | . . . . Robots Hacked . | . . . . Non-combat . | . . . . Combat . | . . . . Robot Hacks Applied . | . . . . Relay Couplers Released . | . . . . Fabnet Peak Effective % . | . . . . Robots Rewired . | . . . . Allies Hacked . | . . . . Hacks Repelled . | . . . . Allies | -11 -10 -9 -9 -------- Run | Yrd Mat Mat Sto Total Allies . | . . . . Largest Group . | . . . . Highest-Rated Group . | . . . . Highest-Rated Ally . | . . . . Total Orders . | . . . . Ally Attacks . | . . . . Total Damage . | . . . . Kills . | . . . . Allies Corrupted . | . . . . Allies Melted . | . . . . Intel | -11 -10 -9 -9 ------- Run | Yrd Mat Mat Sto Active Infowar (turns) 345 | . 345 . . Structural 345 | . 345 . . Robot Analysis Total . | . . . . Derelict Logs Recovered . | . . . . Drone Launches . | . . . . Drone Recoveries . | . . . . Exploration | -11 -10 -9 -9 ------------- Run | Yrd Mat Mat Sto Turns Passed 1767 | 139 489 590 549 Spaces Moved 930 | 105 237 329 259 Core 21 | 21 . . . Treads . | . . . . Legs 766 | 84 237 329 116 Wheels 143 | . . . 143 Hover . | . . . . Flight . | . . . . Fastest Speed 50 | 50 120 105 100 Average Speed 137 | 106 138 143 142 Slowest Speed 315 | 120 190 190 315 Overloaded Moves . | . . . . Propulsion Burnouts . | . . . . Robots Hopped . | . . . . Potential Cave-ins . | . . . . Cave-ins Triggered . | . . . . Exploration Rate (%) 27 | 5 47 18 41 Regions Visited 3 Branch Regions 1 Pre-discovered Areas . | . . . . Known Exits Taken . | . . . . Unknown Exits Taken 3 | 1 1 1 . Scrap Searched . | . . . . Spaces Dug . | . . . . Terrain Destroyed 40 | . 8 . 32 Melee . | . . . . Projectile 2 | . . . 2 AOE 38 | . 8 . 30 Terrain Rammed . | . . . . Walls Destroyed . | . . . . Machines Disabled . | . . . . Actions | -11 -10 -9 -9 --------- Run | Yrd Mat Mat Sto Total 1184 | 122 320 393 349 Wait 32 | 1 11 8 12 Move 927 | 104 236 328 259 Hop . | . . . . Pick Up 30 | 6 12 11 1 Fast Attach 13 | 4 2 . 7 Attach 11 | 1 2 3 5 Detach 5 | . 1 1 3 Swap 19 | . 8 7 4 Drop 16 | . 8 5 3 Fire 122 | 4 40 26 52 Melee . | . . . . Ram 2 | . . . 2 Kick 7 | 2 . 4 1 Crush . | . . . . Escape Stasis . | . . . . Rewire . | . . . . Trap . | . . . . Miscellaneous . | . . . . Route ------- -11/Scrapyard -10/Materials (discovered 2 exits: *Mat / [*Min]) -9/Materials -9/Storage History --------- Turn | Location | Event 2 | -11/Scrapyard | Met Revision 17 77 | -11/Scrapyard | Discovered new exit (range 8) 140 | -11/Scrapyard | Entered Materials 250 | -10/Materials | Discovered new exit (range 15) 305 | -10/Materials | Build established: Mutant 413 | -10/Materials | Discovered new exit (range 14) 629 | -10/Materials | Entered another Materials area 629 | -9/Materials | Evolved 2 slots: Propulsion x1, Utility x1 671 | -9/Materials | Discovered new exit (range 13) 1219 | -9/Materials | Entered Storage 1353 | -9/Storage | Lost 3 parts (1n2w) 1362 | -9/Storage | Destroyed 9 combat bots 1405 | -9/Storage | Core integrity fell below 50% 1669 | -9/Storage | Garrison activated, responded to threat 1712 | -9/Storage | Core integrity fell below 20% 1768 | -9/Storage | Destroyed by Y-45 Defender with Beam Rifle Last Messages --------------- Acquired 9 matter. Acquired 2 matter. U-05 Engineer builds a Door. K-01 Serf collects debris. K-01 Serf cleans the Storage Shell. Acquired Arm. Wheel. Hpw. Shotgun destroyed. Y-45 Defender suffers critical hit (Blast). Y-45 Defender destroyed. Acquired 41 matter. Acquired 6 matter. R-06 Scavenger collects Heat Sink. G-34 Mercenary destroyed. K-01 Serf collects debris. Slammed into R-06 Scavenger. Critical hit (Burn: +37). Backup Propulsion I destroyed. R-06 Scavenger collects Heat Sink. Y-45 Defender Lgt. Treads blasted off. K-01 Serf collects debris. Map ----- +----------------------------------------------------+ | | | | | | | | | | | | | | | | | | | | | | | | | | | | | ???????????????????#?????????????????????????????? | | ?????????????????##T?????????########????????????? | | ?????????????????# "????????# ##########???# | | ?????????????????# #????????# / # #???# | | ?????????????????# #????????# # """"" #???# | | ??????????????????#+########## % # "???" #???# | | ??????????????????# % / # "??"" #???# | | ????????????????###+#####%#### # ""??" #???# | | ????????????????# ##Y##?#+###+## "???" #???# | | ????????????????# # ### ## # """"" #???# | | ????????????????# " "kk r + #???# | | ????????????????#[ "G" # @ ### ## # #???# | | ???????????????## " ## ##?# ### ######+######## | | ???????????????# ! ## #??# #?# #???# T | | ???????????????########## #??# #?# #####^% | | ????????????????????????# #??# #?# "" | | ????????????????????????# #??# #?# ^ "" | | ????????????????????????+ #??# #?# ^ | | ????????????????????????###??# #?# | | ?????????????????????????????# #?# % % | | ?????????????????????????????#+###+##+## " % | | ?????????????????????????????# # " | | ?????????????????????????????# """" # "" | | ?????????????????????????????# "??" # | | ?????????????????????????????# "??" / | | ?????????????????????????????# "??" # | | ?????????????????????????????# "??" ##"T"###### | | ?????????????????????????????# """" ##"""##"""# | | ?????????????????????????????# #######"Y"# | | ?????????????????????????????###########??#! /!!*! | | ??????????????????????????????????????????# ! = [ | | ????????????????????????????????????????### """ " | | ????????????????????????????????????????#"" """ " | | ????????????????????????????????????????#"T """ "" | | ????????????????????????????????????????#"" """ "" | | ????????????????????????????????????????### """ "" | +----------------------------------------------------+ Best States ------------- Heat Dissipation 38 Energy Generation 14 Energy Capacity 265 Matter Stores 300 Matter Capacity 300 Sight Range 16 Terrain Scan Density 10 Armor Coverage 80 Evasion (%) 55 Item Schematics ----------------- None Robot Schematics ------------------ None Fabricated ------------ Nothing Repaired ---------- Nothing Studied --------- Aluminum Leg | -9/Materials | Hacked Lgt. Ion Engine | -9/Materials | Hacked Alien Tech Used ----------------- None Achievements -------------- DATA ERROR: Steam Global Achievement% Fitting Room For Emergencies Only Item+ Shopping List Storm Trooper Troublemaker Challenges ------------ None Game ------ Seed DoorElectronInterrupter Manual? 0 Play Time 00:56:32 Cumulative 1.6 hours Start 2026.02.18 @ 19:28:04 End 2026.02.19 @ 19:20:54 Sessions 3 Manual Loads 0 Difficulty Rogue Special Mode None Game No. 2 Rogue 2 Adventurer 0 Explorer 0 Win Type - Total 0 Types 0/0/0/0/0/0/0/0/0/0 Lore% 1 Gallery% 2 Achievement% 3 Wizard Run 0 Options --------- Layout 1 ASCII 0 Keyboard 0 Movement Arrows Keybinds 0 Fullscreen 1 Font 24/Smallcaps Map View 50x35 Zoom Use 0% Tactical HUD 0 Map Filters NONE Filters NONE Steam 1 RUN: 91808298-33d8-47e0-b81e-09e822f39d98